bitfinex/quotes_BTCUSD_20241211
["timestamp","ask_amount","ask_price","bid_price","bid_amount"]
[1733896310795,0.00116449,97587.0,97586.0,0.5075607]
[1733896311006,0.00016449,97587.0,97586.0,0.61488594]
[1733896311205,0.00116449,97587.0,97586.0,0.62188594]
[1733896311649,0.00116449,97587.0,97586.0,0.61488594]
[1733896311853,0.00016449,97587.0,97586.0,0.61488594]
[1733896312061,0.00116449,97587.0,97586.0,0.62188594]
[1733896312495,0.00116449,97587.0,97586.0,0.61288594]
[1733896312724,0.00116449,97587.0,97586.0,0.62188594]
[1733896313812,0.00016449,97587.0,97586.0,0.61488594]
[1733896314248,0.00116449,97587.0,97586.0,0.62188594]
[1733896314658,0.00016449,97587.0,97586.0,0.61488594]
[1733896315060,0.00116449,97587.0,97586.0,0.62188594]
[1733896315489,0.00016449,97587.0,97586.0,0.60588594]
[1733896315912,0.00116449,97587.0,97586.0,0.62188594]
[1733896316121,0.00116449,97587.0,97586.0,0.61288594]
[1733896317140,0.00116449,97587.0,97586.0,0.62188594]
[1733896317391,0.00016449,97587.0,97586.0,0.78975554]
[1733896317875,0.00116449,97587.0,97586.0,0.79675554]
[1733896318312,0.00016449,97587.0,97586.0,0.78975554]
[1733896318523,0.00116449,97587.0,97586.0,0.79675554]
[1733896318705,0.00116449,97587.0,97586.0,0.80575554]
[1733896320790,0.00116449,97587.0,97586.0,0.62188594]
[1733896320986,8.58e-05,97590.0,97589.0,0.663433]
[1733896321196,8.58e-05,97590.0,97589.0,1.42973016]
[1733896321401,0.00014071,97590.0,97589.0,1.15392694]
[1733896321604,0.00014071,97590.0,97589.0,1.42968547]
[1733896321806,0.00014071,97590.0,97589.0,1.90489245]
[1733896322031,0.00014071,97590.0,97589.0,1.42968547]
[1733896322217,0.00114071,97590.0,97589.0,1.43668547]
[1733896323442,0.00114071,97590.0,97589.0,1.44568547]
[1733896323646,0.00114071,97590.0,97589.0,1.16992694]
[1733896323847,0.00014071,97590.0,97589.0,1.15392694]
[1733896324056,0.00114071,97590.0,97589.0,1.17192694]
[1733896324841,0.00114071,97590.0,97589.0,1.17182501]
[1733896325465,0.00114071,97590.0,97589.0,1.19182014]
[1733896327196,0.00114071,97590.0,97589.0,1.46754171]
[1733896327352,0.00114071,97590.0,97589.0,1.19182014]
[1733896327557,0.00114071,97590.0,97589.0,1.46740682]
[1733896328456,0.00114071,97590.0,97589.0,1.19182014]
[1733896329981,0.00114071,97590.0,97589.0,1.46740682]
[1733896330314,0.00114071,97590.0,97589.0,1.19182014]
[1733896333451,0.00114071,97590.0,97589.0,1.19141197]
[1733896333658,0.00114071,97590.0,97589.0,1.46677744]
[1733896334902,0.00114071,97590.0,97589.0,1.19141197]
[1733896335116,0.00114071,97590.0,97589.0,0.89141197]
[1733896335446,0.00114071,97590.0,97589.0,0.84561197]
[1733896335646,0.00114071,97590.0,97589.0,0.77838017]
[1733896335876,0.00114071,97590.0,97589.0,0.98332117]
[1733896336086,0.00114071,97590.0,97589.0,0.79446257]
[1733896336505,0.00114071,97590.0,97589.0,0.65675337]
[1733896337222,0.00114071,97590.0,97589.0,0.99581971]
[1733896337430,0.00114071,97590.0,97589.0,0.76302771]
[1733896337637,0.00114071,97590.0,97589.0,0.56517871]
[1733896337843,0.00114071,97590.0,97589.0,0.22611237]
[1733896338890,0.00114071,97590.0,97589.0,0.14332037]
[1733896339322,0.00114071,97590.0,97589.0,0.22611237]
[1733896343180,0.00114071,97590.0,97589.0,0.77861268]
[1733896343401,0.00114071,97590.0,97589.0,0.9745621]
[1733896343605,0.00114071,97590.0,97589.0,0.79076441]
[1733896344234,0.00114071,97590.0,97589.0,0.58937608]
[1733896344461,0.00114071,97590.0,97589.0,0.9286566]
[1733896344666,0.00114071,97590.0,97589.0,0.79079289]
[1733896344903,0.00114071,97590.0,97589.0,0.83780582]
[1733896345096,8.58e-05,97600.0,97599.0,0.308192]
[1733896345305,0.00014072,97600.0,97599.0,0.75271069]
[1733896345902,0.00014072,97600.0,97599.0,0.9364757]
[1733896346306,0.00014072,97600.0,97599.0,0.94244122]
[1733896346307,0.00114072,97600.0,97599.0,0.94244122]
[1733896346506,0.00114072,97600.0,97599.0,1.13841696]
[1733896346705,0.00114072,97600.0,97599.0,0.90871069]
[1733896347199,0.00114072,97600.0,97599.0,0.91771069]
[1733896347378,0.00114072,97600.0,97599.0,0.90871069]
[1733896347802,0.00114072,97600.0,97599.0,0.91771069]
[1733896348008,0.00014072,97600.0,97599.0,0.90271069]
[1733896348365,0.00114072,97600.0,97599.0,0.76871069]
[1733896348597,0.00114072,97600.0,97599.0,0.91871069]
[1733896348749,0.00014072,97600.0,97599.0,0.91171069]
[1733896349153,0.00114072,97600.0,97599.0,0.98131406]
[1733896349813,0.00014072,97600.0,97599.0,0.97231406]
[1733896350772,0.00014072,97600.0,97599.0,1.24764067]
[1733896351173,0.00114072,97600.0,97599.0,1.25664067]
[1733896351623,0.00114072,97600.0,97599.0,1.24764067]
[1733896352030,0.00114072,97600.0,97599.0,1.39764067]
[1733896352249,0.00114072,97600.0,97599.0,1.12212905]
[1733896352885,8.58e-05,97620.0,97616.0,0.287676]
[1733896353096,0.18183972,97617.0,97616.0,0.99101778]
[1733896354264,0.18183972,97617.0,97616.0,1.00001778]
[1733896354492,0.18183972,97617.0,97616.0,0.87870176]
[1733896354692,0.18183972,97617.0,97616.0,0.19711724]
[1733896354899,0.18183972,97617.0,97616.0,0.091792]
[1733896355099,0.18183972,97617.0,97616.0,0.096792]
[1733896355474,0.18183972,97617.0,97616.0,0.1167796]
[1733896359368,0.26093972,97617.0,97616.0,0.014]
[1733896359969,0.26093972,97617.0,97616.0,0.096792]
[1733896360196,0.26093972,97617.0,97616.0,0.014]
[1733896360411,0.26093972,97617.0,97616.0,0.005]
[1733896360633,0.26093972,97617.0,97616.0,0.087792]
[1733896360831,0.26093972,97617.0,97616.0,0.090792]
[1733896361040,0.26093972,97617.0,97616.0,0.085792]
[1733896361241,0.26093972,97617.0,97616.0,0.087792]
[1733896361780,0.26093972,97617.0,97616.0,0.082792]
[1733896361983,0.26093972,97617.0,97616.0,0.087792]
[1733896362157,0.26093972,97617.0,97616.0,0.090792]
[1733896362822,0.18183972,97617.0,97616.0,0.087792]
[1733896363080,0.18183972,97617.0,97616.0,0.088792]
[1733896363545,0.18183972,97617.0,97616.0,0.083792]
[1733896363779,0.18183972,97617.0,97616.0,0.090792]
[1733896364266,0.18183972,97617.0,97616.0,0.089792]
[1733896364541,0.18183972,97617.0,97616.0,0.085792]
[1733896364967,0.18183972,97617.0,97616.0,0.092792]
[1733896365175,0.18183972,97617.0,97616.0,0.21192725]
[1733896366620,0.18183972,97617.0,97616.0,0.21892725]
[1733896367192,0.46752172,97617.0,97616.0,0.01]
[1733896367517,0.51512172,97617.0,97616.0,0.01]
[1733896367717,0.66512172,97617.0,97616.0,0.01]
[1733896368001,0.68812172,97617.0,97616.0,0.01]
[1733896368159,0.88762407,97617.0,97616.0,0.01]
[1733896368521,0.88762407,97617.0,97616.0,1e-06]
[1733896368522,0.80624222,97617.0,97616.0,1e-06]
[1733896368718,0.204936,97591.0,97590.0,0.0829636]
[1733896368934,0.15,97616.0,97590.0,0.0829636]
[1733896368935,0.204907,97605.0,97603.0,0.082792]
[1733896369128,0.15,97609.0,97603.0,0.082792]
[1733896369335,0.204901,97608.0,97603.0,0.082792]
[1733896370157,0.409803,97608.0,97603.0,0.082792]
[1733896370994,0.409803,97608.0,97603.0,0.087792]
[1733896371196,0.409803,97608.0,97590.0,0.0001716]
[1733896371197,0.409803,97608.0,97601.0,0.082792]
[1733896371373,0.204913,97602.0,97601.0,0.082792]
[1733896371689,0.204913,97602.0,97590.0,0.0001716]
[1733896371690,0.204913,97602.0,97600.0,0.082792]
[1733896371876,0.40983,97601.0,97597.0,0.082792]
[1733896372202,0.204936,97591.0,97590.0,0.0829636]
[1733896372753,0.204936,97591.0,97590.0,0.0001716]
[1733896374378,0.204936,97591.0,97590.0,0.0051716]
[1733896375165,0.204936,97591.0,97590.0,0.0081716]
[1733896377616,0.21774525,97591.0,97590.0,0.0081716]
[1733896379045,0.36774525,97591.0,97590.0,0.0081716]
[1733896379891,0.36774525,97591.0,97590.0,0.0031716]
[1733896380447,0.36774525,97591.0,97590.0,0.0001716]
[1733896380671,0.36774525,97591.0,97590.0,0.0021716]
[1733896381122,0.36774525,97591.0,97590.0,0.0011716]
[1733896381476,0.36874525,97591.0,97590.0,0.0001716]
[1733896381736,0.36774525,97591.0,97590.0,0.0001716]
[1733896383110,0.36874525,97591.0,97590.0,0.0001716]
[1733896383463,0.36774525,97591.0,97590.0,0.0001716]
[1733896383894,0.36874525,97591.0,97590.0,0.0001716]
[1733896387590,0.36774525,97591.0,97590.0,0.0001716]
[1733896388052,0.36874525,97591.0,97590.0,0.0001716]
[1733896388179,0.36774525,97591.0,97590.0,0.0001716]
[1733896389672,0.36874525,97591.0,97590.0,0.0001716]
[1733896394480,0.36774525,97591.0,97590.0,0.0001716]
[1733896394952,0.36874525,97591.0,97590.0,0.0001716]
[1733896401520,0.36774525,97591.0,97590.0,0.0001716]
[1733896402400,0.57847049,97591.0,97590.0,6e-07]
[1733896402607,0.023,97578.0,97553.0,0.08]
[1733896402823,0.205014,97554.0,97553.0,0.08]
[1733896403983,0.205014,97554.0,97553.0,0.084]
[1733896404151,0.205014,97554.0,97553.0,0.08405492]
[1733896404371,0.205014,97554.0,97553.0,0.08005492]
[1733896404571,0.205014,97554.0,97553.0,0.08405492]
[1733896404797,0.205014,97554.0,97553.0,0.08205492]
[1733896405207,0.205014,97554.0,97553.0,0.08605492]
[1733896407099,0.205014,97554.0,97553.0,0.16884692]
[1733896408005,0.21744646,97554.0,97553.0,0.16884692]
[1733896413938,0.21744646,97554.0,97553.0,0.08884692]
[1733896414482,0.21744646,97554.0,97553.0,0.00605492]
[1733896416272,0.21744646,97554.0,97553.0,0.00405492]
[1733896416547,0.21744646,97554.0,97553.0,0.08884692]
[1733896417007,0.21744646,97554.0,97553.0,5.492e-05]
[1733896417336,0.21744646,97554.0,97553.0,0.08484692]
[1733896417968,0.21744646,97554.0,97553.0,0.00205492]
[1733896418167,0.21744646,97554.0,97553.0,0.08284692]
[1733896418368,0.21744646,97554.0,97553.0,0.08484692]
[1733896418569,0.21744646,97554.0,97553.0,0.08684692]
[1733896418781,0.21744646,97554.0,97553.0,0.08484692]
[1733896420112,0.21744646,97554.0,97553.0,0.08284692]
[1733896420570,0.21744646,97554.0,97553.0,0.08484692]
[1733896421554,0.21744646,97554.0,97553.0,0.08684692]
[1733896421807,0.21744646,97554.0,97553.0,0.08484692]
[1733896422011,0.21744646,97554.0,97553.0,0.08884692]
[1733896440679,0.21744646,97554.0,97553.0,0.00605492]
[1733896442803,0.21744646,97554.0,97553.0,0.08884692]
[1733896458841,0.21744646,97554.0,97553.0,0.00605492]
[1733896459047,0.36744646,97554.0,97553.0,0.00605492]
[1733896460553,0.36744646,97554.0,97553.0,0.00405492]
[1733896461387,0.36744646,97554.0,97553.0,5.492e-05]
[1733896461541,0.36744646,97554.0,97553.0,0.00205492]
[1733896461719,0.36744646,97554.0,97553.0,0.00505492]
[1733896461919,0.36744646,97554.0,97553.0,0.00205492]
[1733896462332,0.36744646,97554.0,97553.0,0.00305492]
[1733896462758,0.36744646,97554.0,97553.0,0.00105492]
[1733896463146,0.36744646,97554.0,97553.0,0.00205492]
[1733896463918,0.36744646,97554.0,97553.0,0.00105492]
[1733896464327,0.36744646,97554.0,97553.0,0.00205492]
[1733896464539,0.36744646,97554.0,97553.0,0.00105492]
[1733896464748,0.36744646,97554.0,97553.0,0.00205492]
[1733896465100,0.36744646,97554.0,97553.0,0.00105492]
[1733896465703,0.36744646,97554.0,97553.0,5.492e-05]
[1733896468943,0.36844646,97554.0,97553.0,5.492e-05]
[1733896469172,0.36744646,97554.0,97553.0,5.492e-05]
[1733896473037,0.36744646,97554.0,97553.0,0.00105492]
[1733896473244,0.36744646,97554.0,97553.0,0.00205492]
[1733896473644,0.36744646,97554.0,97553.0,0.00105492]
[1733896473892,0.36744646,97554.0,97553.0,0.00305492]
[1733896474495,0.36744646,97554.0,97553.0,0.00205492]
[1733896474701,0.21744646,97554.0,97553.0,0.00205492]
[1733896474838,0.21744646,97554.0,97553.0,0.00505492]
[1733896475044,0.21744646,97554.0,97553.0,5.492e-05]
[1733896475467,0.21744646,97554.0,97553.0,0.00605492]
[1733896476268,0.21744646,97554.0,97553.0,0.00405492]
[1733896476448,0.21744646,97554.0,97553.0,0.00605492]
[1733896477071,0.21744646,97554.0,97553.0,0.00405492]
[1733896477477,0.21744646,97554.0,97553.0,5.492e-05]
[1733896478099,0.21744646,97554.0,97553.0,0.00405492]
[1733896478488,0.21744646,97554.0,97553.0,0.00605492]
[1733896489393,0.20727763,97554.0,97553.0,0.00605492]
[1733896510114,0.09221793,97568.0,97553.0,0.00605492]
[1733896510115,0.204983,97569.0,97560.0,0.163292]
[1733896510321,8.58e-05,97570.0,97569.0,0.0805]
[1733896510525,8.58e-05,97570.0,97569.0,0.1289]
[1733896511947,0.0010858,97570.0,97569.0,0.1289]
[1733896512802,8.58e-05,97570.0,97569.0,0.1289]
[1733896513000,8.58e-05,97570.0,97569.0,0.1339]
[1733896513199,8.58e-05,97570.0,97569.0,0.1369]
[1733896515725,8.58e-05,97570.0,97569.0,0.15776358]
[1733896518882,8.58e-05,97570.0,97569.0,0.26308882]
[1733896519066,8.58e-05,97570.0,97569.0,0.34588082]
[1733896527964,8.58e-05,97570.0,97569.0,0.26308882]
[1733896528171,8.58e-05,97570.0,97569.0,0.34588082]
[1733896534304,8.58e-05,97570.0,97569.0,0.55086382]
[1733896541989,0.0787,97600.0,97569.0,0.55086382]
[1733896541990,0.0754,97609.0,97594.0,0.082792]
[1733896542243,0.204905,97606.0,97594.0,0.082792]
[1733896542495,0.204905,97606.0,97600.0,0.082792]
[1733896542736,0.204905,97606.0,97602.0,0.082792]
[1733896542977,0.204895,97611.0,97604.0,0.082792]
[1733896542978,0.07952074,97610.0,97604.0,0.082792]
[1733896543238,0.07952074,97610.0,97593.0,0.10532524]
[1733896543239,0.01172371,97610.0,97606.0,0.082792]
[1733896543517,0.001,97609.0,97606.0,0.082792]
[1733896543782,8.58e-05,97610.0,97606.0,0.082792]
[1733896544316,8.58e-05,97610.0,97608.0,0.082792]
[1733896544770,8.58e-05,97610.0,97605.0,0.0778]
[1733896544771,8.58e-05,97610.0,97609.0,0.082792]
[1733896545514,8.58e-05,97610.0,97608.0,0.082792]
[1733896545750,8.58e-05,97610.0,97609.0,0.082792]
[1733896547340,8.58e-05,97610.0,97609.0,0.085792]
[1733896547839,8.58e-05,97610.0,97609.0,0.087792]
[1733896551407,8.58e-05,97610.0,97609.0,0.005]
[1733896551667,8.58e-05,97610.0,97609.0,0.087792]
[1733896553234,8.58e-05,97610.0,97609.0,0.19311724]
[1733896556546,8.58e-05,97610.0,97609.0,0.27091724]
[1733896556765,8.58e-05,97610.0,97609.0,0.27591724]
[1733896556955,8.58e-05,97610.0,97609.0,0.28491724]
[1733896557166,8.58e-05,97610.0,97609.0,0.27591724]
[1733896557371,8.58e-05,97610.0,97609.0,0.27091724]
[1733896557573,8.58e-05,97610.0,97609.0,0.28191724]
[1733896557723,8.58e-05,97610.0,97609.0,0.27491724]
[1733896558129,8.58e-05,97610.0,97609.0,0.27991724]
[1733896558354,8.58e-05,97610.0,97609.0,0.28491724]
[1733896561100,0.1407032,97617.0,97616.0,0.514976]
[1733896561307,0.1407032,97617.0,97616.0,0.66620124]
[1733896562876,0.1407032,97617.0,97616.0,0.67220124]
[1733896563313,0.1407032,97617.0,97616.0,0.66620124]
[1733896563686,8.58e-05,97620.0,97619.0,0.2273]
[1733896563890,8.58e-05,97620.0,97619.0,0.33262524]
[1733896564288,8.58e-05,97630.0,97624.0,0.082792]
[1733896564602,8.58e-05,97630.0,97624.0,0.18811724]
[1733896565661,0.01506192,97625.0,97624.0,0.18811724]
[1733896566819,0.01506192,97625.0,97624.0,0.21538167]
[1733896569235,0.01506192,97625.0,97624.0,0.23552442]
[1733896569942,0.00801744,97625.0,97624.0,0.23552442]
[1733896571512,0.00801744,97625.0,97624.0,0.31282442]
[1733896572255,0.00801744,97625.0,97624.0,0.30582442]
[1733896572518,0.00801744,97625.0,97624.0,0.45582442]
[1733896572756,0.00801744,97625.0,97624.0,0.46282442]
[1733896573306,0.00801744,97625.0,97624.0,0.44682442]
[1733896573774,0.00801744,97625.0,97624.0,0.50972442]
[1733896574017,0.00801744,97625.0,97624.0,0.50072442]
[1733896574667,0.00801744,97625.0,97624.0,0.50972442]
[1733896575513,0.00801744,97625.0,97624.0,0.50172442]
[1733896575714,0.00801744,97625.0,97624.0,0.50972442]
[1733896576120,0.01131172,97649.0,97625.0,0.15]
[1733896576329,0.07952074,97650.0,97636.0,0.204841]
[1733896576535,0.07952074,97650.0,97637.0,0.10532524]
[1733896576953,0.07952074,97650.0,97647.0,0.082792]
[1733896577596,0.090898,97650.0,97647.0,0.082792]
[1733896578209,0.090898,97650.0,97637.0,0.10532524]
[1733896578210,0.204815,97649.0,97643.0,0.082792]
[1733896578417,0.090898,97650.0,97647.0,0.082792]
[1733896578646,0.090898,97650.0,97643.0,0.082792]
[1733896579070,0.090898,97650.0,97647.0,0.003]
[1733896579217,0.0909837,97650.0,97647.0,0.003]
[1733896579650,0.0909837,97650.0,97646.0,0.082792]
[1733896579854,0.0909837,97650.0,97637.0,0.10532524]
[1733896579855,0.0909837,97650.0,97643.0,0.082792]
[1733896580054,0.0909837,97650.0,97647.0,0.007]
[1733896580844,0.0909837,97650.0,97646.0,0.082792]
[1733896581868,0.0909837,97650.0,97646.0,0.003]
[1733896582295,0.204815,97649.0,97644.0,0.082792]
[1733896582552,0.204815,97649.0,97646.0,0.084792]
[1733896583018,0.204815,97649.0,97647.0,0.007]
[1733896583262,0.204815,97649.0,97643.0,0.082792]
[1733896583687,0.00448997,97648.0,97644.0,0.009]
[1733896584023,0.00448997,97648.0,97644.0,0.091792]
[1733896584221,0.00448997,97648.0,97644.0,0.085792]
[1733896584447,0.00448997,97648.0,97644.0,0.003]
[1733896584677,0.00448997,97648.0,97647.0,0.008]
[1733896584906,0.00448997,97648.0,97646.0,0.082792]
[1733896585106,0.00448997,97648.0,97645.0,0.082792]
[1733896585941,0.00448997,97648.0,97647.0,0.004]
[1733896586911,0.00448997,97648.0,97645.0,0.090792]
[1733896587235,0.00448997,97648.0,97645.0,0.082792]
[1733896587498,0.00448997,97648.0,97642.0,0.082792]
[1733896587664,0.00448997,97648.0,97647.0,0.007]
[1733896588020,0.00448997,97648.0,97642.0,0.082792]
[1733896588215,0.00448997,97648.0,97645.0,0.090792]
[1733896588437,0.00448997,97648.0,97645.0,0.094792]
[1733896588837,0.00448997,97648.0,97645.0,0.090792]
[1733896588993,0.00448997,97648.0,97647.0,0.003]
[1733896589530,0.00448997,97648.0,97642.0,0.082792]
[1733896589697,0.204819,97647.0,97642.0,0.082792]
[1733896590049,0.00448913,97646.0,97645.0,0.004]
[1733896591368,0.00448913,97646.0,97642.0,0.082792]
[1733896591785,0.00448913,97646.0,97645.0,0.082792]
[1733896591896,0.00448913,97646.0,97643.0,0.082792]
[1733896592099,0.204823,97645.0,97642.0,0.082792]
[1733896592359,0.0044889,97644.0,97643.0,0.082792]
[1733896593367,0.204819,97647.0,97643.0,0.082792]
[1733896593518,0.0044889,97644.0,97643.0,0.082792]
[1733896593718,0.01146296,97650.0,97643.0,0.082792]
[1733896593951,0.01146296,97650.0,97648.0,0.082792]
[1733896594165,0.0909837,97650.0,97648.0,0.082792]
[1733896594366,0.204815,97649.0,97648.0,0.082792]
[1733896595624,0.0909837,97650.0,97648.0,0.004]
[1733896595862,0.0909837,97650.0,97648.0,0.086792]
[1733896596350,0.0909837,97650.0,97648.0,0.094792]
[1733896596756,0.204815,97649.0,97648.0,0.094792]
[1733896597105,0.204815,97649.0,97648.0,0.086792]
[1733896597535,0.204815,97649.0,97648.0,0.089792]
[1733896597768,0.204815,97649.0,97648.0,0.085792]
[1733896598330,0.204815,97649.0,97645.0,0.082792]
[1733896598527,0.204815,97649.0,97648.0,0.085792]
[1733896598734,0.204815,97649.0,97648.0,0.003]
[1733896599142,0.204815,97649.0,97648.0,0.085792]
[1733896599384,0.204815,97649.0,97648.0,0.008]
[1733896599595,0.204815,97649.0,97648.0,0.082792]
[1733896599860,0.0909837,97650.0,97648.0,0.082792]
[1733896600052,0.0909837,97650.0,97648.0,0.091792]
[1733896600641,0.0909837,97650.0,97648.0,0.082792]
[1733896601054,0.0909837,97650.0,97648.0,0.090792]
[1733896601245,0.204815,97649.0,97648.0,0.090792]
[1733896601396,0.204815,97649.0,97648.0,0.008]
[1733896601802,0.204815,97649.0,97648.0,0.090792]
[1733896602425,0.204815,97649.0,97648.0,0.012]
[1733896602836,0.204815,97649.0,97648.0,0.004]
[1733896603072,0.20929751,97649.0,97648.0,0.004]
[1733896603325,0.20929751,97649.0,97648.0,0.013]
[1733896604455,0.20929751,97649.0,97648.0,0.004]
[1733896604787,0.20929751,97649.0,97648.0,0.012]
[1733896604998,0.45849751,97649.0,97648.0,0.012]
[1733896605197,0.50509751,97649.0,97648.0,0.012]
[1733896605408,0.50509751,97649.0,97648.0,0.008]
[1733896605409,0.62911132,97649.0,97648.0,0.008]
[1733896605593,0.79920868,97649.0,97648.0,0.008]
[1733896605803,0.83120284,97649.0,97648.0,0.011]
[1733896606004,0.83120284,97649.0,97648.0,0.003]
[1733896606230,0.93652808,97649.0,97648.0,0.003]
[1733896606431,0.64241691,97649.0,97648.0,0.012]
[1733896606629,0.70252899,97649.0,97648.0,0.012]
[1733896606854,0.61042275,97649.0,97648.0,0.012]
[1733896606999,0.61042275,97649.0,97648.0,0.009]
[1733896607206,0.61042275,97649.0,97625.0,0.082792]
[1733896607207,0.204862,97627.0,97625.0,0.082792]
[1733896607722,0.173,97648.0,97625.0,0.18811724]
[1733896607723,0.00464851,97626.0,97625.0,0.18811724]
[1733896607872,0.00464851,97626.0,97625.0,0.27121724]
[1733896608178,0.07952074,97640.0,97625.0,0.27121724]
[1733896608379,0.204836,97639.0,97637.0,0.082792]
[1733896608781,0.00458134,97638.0,97637.0,0.082792]
[1733896609599,0.204836,97639.0,97637.0,0.082792]
[1733896609800,0.00458718,97638.0,97637.0,0.082792]
[1733896610140,0.00458718,97638.0,97626.0,0.24285953]
[1733896610141,0.20484,97637.0,97633.0,0.082792]
[1733896610549,0.20484,97637.0,97626.0,0.24283831]
[1733896610550,0.20484,97637.0,97636.0,0.082792]
[1733896611766,0.20484,97637.0,97635.0,0.082792]
[1733896612197,0.20484,97637.0,97636.0,0.085792]
[1733896612348,0.01143812,97639.0,97636.0,0.085792]
[1733896612528,0.204836,97639.0,97636.0,0.085792]
[1733896612729,0.204836,97639.0,97637.0,0.082792]
[1733896613140,0.204836,97639.0,97638.0,0.082792]
[1733896614349,0.204836,97639.0,97638.0,0.089792]
[1733896617001,0.204827,97644.0,97638.0,0.19511724]
[1733896617236,0.204827,97644.0,97638.0,0.27821724]
[1733896617449,0.07952074,97640.0,97638.0,0.27821724]
[1733896617628,0.28435674,97640.0,97638.0,0.11232524]
[1733896617866,0.00459546,97639.0,97638.0,0.19311724]
[1733896618269,0.00459546,97639.0,97638.0,0.19411724]
[1733896618683,0.00459546,97639.0,97638.0,0.18911724]
[1733896619422,0.00459546,97639.0,97638.0,0.18811724]
[1733896619788,0.00459546,97639.0,97638.0,0.19011724]
[1733896619998,0.00459546,97639.0,97638.0,0.19211724]
[1733896620208,0.00459546,97639.0,97638.0,0.19011724]
[1733896620627,0.00459546,97639.0,97638.0,0.19511724]
[1733896620831,0.00459546,97639.0,97638.0,0.18811724]
[1733896621034,0.00459546,97639.0,97638.0,0.19011724]
[1733896621258,0.00459546,97639.0,97638.0,0.19511724]
[1733896621675,0.00459546,97639.0,97638.0,0.27741724]
[1733896621882,0.204825,97644.0,97643.0,0.082792]
[1733896622091,0.2048997,97650.0,97638.0,0.19462524]
[1733896622092,0.28442044,97650.0,97644.0,0.082792]
[1733896622323,0.204819,97647.0,97644.0,0.082792]
[1733896622659,0.204819,97647.0,97646.0,0.082792]
[1733896624126,0.204819,97647.0,97646.0,0.084792]
[1733896624501,0.204819,97647.0,97646.0,0.002]
[1733896624676,0.281019,97647.0,97632.0,0.082792]
[1733896624880,0.204848,97633.0,97624.0,0.09171065]
[1733896625201,0.0762,97647.0,97646.0,0.001]
[1733896625541,0.431019,97647.0,97646.0,0.001]
[1733896625758,0.454019,97647.0,97646.0,0.001]
[1733896626305,0.454019,97647.0,97646.0,0.003]
[1733896626532,0.454019,97647.0,97632.0,0.001]
[1733896626533,0.173,97646.0,97632.0,0.001]
[1733896626684,0.204848,97633.0,97632.0,0.001]
[1733896627085,0.204848,97633.0,97626.0,0.082792]
[1733896627086,0.204861,97627.0,97626.0,0.082792]
[1733896627513,0.204861,97627.0,97624.0,0.08285392]
[1733896627727,0.204861,97627.0,97624.0,6.192e-05]
[1733896628751,0.204861,97627.0,97626.0,0.082792]
[1733896629443,0.204861,97627.0,97624.0,6.192e-05]
[1733896629912,0.21596091,97627.0,97624.0,0.01006192]
[1733896630175,0.21596091,97627.0,97624.0,0.00306192]
[1733896630358,0.204865,97625.0,97624.0,6.192e-05]
[1733896630704,0.354865,97625.0,97624.0,6.192e-05]
[1733896631250,0.354865,97625.0,97624.0,0.00406192]
[1733896631387,0.354865,97625.0,97624.0,0.00106192]
[1733896632491,0.354865,97625.0,97624.0,6.192e-05]
[1733896633048,0.35968421,97625.0,97624.0,0.00306192]
[1733896633238,0.35968421,97625.0,97624.0,0.00106192]
[1733896633377,0.35968421,97625.0,97624.0,0.00206192]
[1733896633581,0.35968421,97625.0,97624.0,0.00306192]
[1733896633778,0.38268421,97625.0,97624.0,0.00306192]
[1733896633977,0.38268421,97625.0,97624.0,0.00206192]
[1733896634481,0.38268421,97625.0,97624.0,0.00306192]
[1733896640752,0.35968421,97625.0,97624.0,0.00306192]
[1733896640957,0.20968421,97625.0,97624.0,0.00306192]
[1733896641998,0.20968421,97625.0,97624.0,0.00206192]
[1733896642364,0.20968421,97625.0,97624.0,0.00306192]
[1733896643587,0.20968421,97625.0,97624.0,0.00106192]
[1733896643962,0.20968421,97625.0,97624.0,0.00406192]
[1733896644851,0.20968421,97625.0,97624.0,0.00106192]
[1733896645057,0.20968421,97625.0,97624.0,0.00406192]
[1733896645297,0.00481921,97625.0,97624.0,0.08685392]
[1733896645493,0.00481921,97625.0,97624.0,0.08885392]
[1733896645699,0.01109991,97627.0,97626.0,0.082792]
[1733896646029,0.204859,97628.0,97626.0,0.082792]
[1733896647313,0.204859,97628.0,97627.0,0.082792]
[1733896647888,0.2096474,97628.0,97627.0,0.082792]
[1733896648662,0.2096474,97628.0,97627.0,0.086792]
[1733896649419,0.2096474,97628.0,97627.0,0.085792]
[1733896649644,0.2096474,97628.0,97627.0,0.088792]
[1733896650404,0.2096474,97628.0,97627.0,0.003]
[1733896650647,0.2096474,97628.0,97627.0,0.009]
[1733896650892,0.0047884,97628.0,97627.0,0.009]
[1733896651626,8.58e-05,97630.0,97627.0,0.006]
[1733896651858,0.0047884,97628.0,97627.0,0.003]
[1733896652095,8.58e-05,97630.0,97627.0,0.01]
[1733896652322,0.2096474,97628.0,97627.0,0.01]
[1733896652551,0.2096474,97628.0,97627.0,0.007]
[1733896652756,0.2096474,97628.0,97627.0,0.01]
[1733896653888,0.2096474,97628.0,97627.0,0.007]
[1733896654088,0.204861,97627.0,97624.0,6.192e-05]
[1733896654297,0.409722,97627.0,97624.0,6.192e-05]
[1733896654512,0.204865,97625.0,97624.0,6.192e-05]
[1733896654928,0.20965866,97625.0,97624.0,6.192e-05]
[1733896655819,0.20965866,97625.0,97624.0,0.00506192]
[1733896657012,0.20965866,97625.0,97624.0,0.00306192]
[1733896657364,0.20965866,97625.0,97624.0,0.00906192]
[1733896657561,0.20965866,97625.0,97624.0,0.00206192]
[1733896657966,0.20965866,97625.0,97624.0,0.00606192]
[1733896658183,0.20965866,97625.0,97624.0,6.192e-05]
[1733896658596,0.20965866,97625.0,97624.0,0.00606192]
[1733896658792,0.20965866,97625.0,97624.0,0.00206192]
[1733896659187,0.20965866,97625.0,97624.0,0.00606192]
[1733896660032,0.20965866,97625.0,97624.0,0.00406192]
[1733896660509,0.20965866,97625.0,97624.0,0.00106192]
[1733896660890,0.20965866,97625.0,97624.0,0.00406192]
[1733896661065,0.20965866,97625.0,97624.0,0.00206192]
[1733896661463,0.20965866,97625.0,97624.0,0.00606192]
[1733896663919,0.20965866,97625.0,97624.0,0.00406192]
[1733896664367,0.20965866,97625.0,97624.0,0.00206192]
[1733896664585,0.20965866,97625.0,97624.0,0.00606192]
[1733896664720,0.20965866,97625.0,97624.0,0.00406192]
[1733896665067,0.20965866,97625.0,97624.0,0.00206192]
[1733896665303,0.20965866,97625.0,97624.0,0.00706192]
[1733896665514,0.20965866,97625.0,97624.0,0.00206192]
[1733896666227,0.20965866,97625.0,97624.0,6.192e-05]
[1733896666669,0.20965866,97625.0,97624.0,0.00106192]